bitfinex/quotes_ETHUSD_20241105
["timestamp","ask_amount","ask_price","bid_price","bid_amount"]
[1730838011297,6.26978282,2426.1,2425.8,0.0599987]
[1730838011477,3.32868523,2426.2,2425.8,0.0599987]
[1730838011478,0.822,2426.2,2426.0,4.12201]
[1730838011683,1.26978282,2426.3,2425.8,0.0599987]
[1730838011843,0.42792721,2426.0,2425.8,0.0599987]
[1730838012044,5.822,2426.1,2425.8,0.0599987]
[1730838016021,0.774,2426.0,2425.8,0.0599987]
[1730838016532,3.774,2426.0,2425.8,0.0599987]
[1730838016742,8.0,2425.9,2425.8,0.0599987]
[1730838016910,5.0,2425.9,2425.8,0.0599987]
[1730838017108,5.5774,2425.9,2425.8,0.0599987]
[1730838017828,5.0,2425.9,2425.8,0.0599987]
[1730838018193,8.8146,2426.3,2425.8,4.1822187]
[1730838018634,8.8146,2426.3,2425.8,8.3044587]
[1730838018934,5.0,2426.5,2426.1,4.12178]
[1730838019136,5.0,2426.2,2426.0,4.12199]
[1730838019337,5.0,2426.5,2426.0,4.12189]
[1730838019542,0.58009,2426.4,2426.0,4.12189]
[1730838020097,5.0,2426.2,2425.9,4.12218]
[1730838020355,5.0,2426.2,2426.0,8.2439]
[1730838020642,5.0,2426.2,2426.0,4.12191]
[1730838020937,5.0,2426.5,2426.1,4.12169]
[1730838021096,5.8009,2426.6,2426.2,4.12163]
[1730838021297,5.8009,2426.6,2426.3,4.1214]
[1730838021545,5.8009,2426.6,2426.2,4.12163]
[1730838021760,5.8009,2426.6,2426.3,4.12148]
[1730838021967,5.0,2426.6,2426.4,4.12122]
[1730838022119,5.0,2426.6,2426.4,4.12133]
[1730838022313,6.26823714,2427.0,2426.5,4.12116]
[1730838022929,6.26823714,2427.0,2426.4,0.8254]
[1730838022930,6.26823714,2427.0,2426.7,4.1207]
[1730838023137,6.26823714,2427.0,2426.6,4.12083]
[1730838023335,5.0,2427.0,2426.6,8.24171]
[1730838023640,7.08493714,2427.2,2426.6,4.12083]
[1730838023975,0.877592,2427.1,2426.6,4.12083]
[1730838024161,7.08493714,2427.2,2426.7,4.12073]
[1730838024335,7.08493714,2427.2,2426.8,4.12062]
[1730838024532,7.08493714,2427.2,2426.6,4.12083]
[1730838024734,6.26823714,2427.2,2427.0,4.1202]
[1730838024936,1.26823714,2427.3,2427.2,4.11997]
[1730838025140,1.26823714,2427.3,2427.2,4.943968]
[1730838025444,5.0,2427.5,2427.2,4.11997]
[1730838026061,5.0,2427.5,2427.1,4.12001]
[1730838026280,5.0,2427.2,2426.6,0.761]
[1730838026585,5.0,2427.2,2426.6,4.88196]
[1730838026885,5.0,2426.9,2426.4,4.12121]
[1730838027035,5.5,2426.9,2426.4,4.12121]
[1730838027375,5.5,2426.9,2426.1,4.12174]
[1730838027376,5.0,2426.6,2426.1,4.12174]
[1730838027683,5.0,2426.6,2425.9,0.761]
[1730838027850,5.0,2426.6,2426.1,4.12169]
[1730838028034,5.0,2426.6,2426.0,4.12201]
[1730838028229,0.5,2426.5,2426.0,4.12201]
[1730838028475,0.5,2426.5,2426.0,8.24393]
[1730838028770,0.5,2426.5,2426.0,4.12191]
[1730838028961,0.5,2426.5,2426.1,4.12174]
[1730838029532,0.5,2426.5,2426.0,4.12191]
[1730838029533,3.7547,2427.1,2426.7,4.1207]
[1730838029733,0.7547,2427.1,2426.8,4.1205]
[1730838029941,5.0,2427.0,2426.7,4.12071]
[1730838030238,1.26837538,2427.3,2427.0,4.12016]
[1730838030476,2.1397812,2427.3,2427.0,4.12016]
[1730838030685,1.26837538,2427.3,2426.8,4.12065]
[1730838030977,1.26837538,2427.3,2427.2,4.11997]
[1730838031689,1.26837538,2427.3,2427.2,4.66997]
[1730838032189,1.26837538,2427.9,2427.6,4.11914]
[1730838032686,1.26837538,2427.9,2427.6,8.23834]
[1730838033107,2.1462012,2427.9,2427.4,4.11954]
[1730838033392,2.1462012,2427.9,2427.5,4.11935]
[1730838033592,5.0,2427.8,2427.4,4.11954]
[1730838033791,1.26837538,2427.9,2427.8,4.11895]
[1730838034102,1.26837538,2427.9,2427.7,4.11897]
[1730838034306,1.26837538,2427.9,2427.8,4.530847]
[1730838034452,1.26837538,2427.9,2427.8,4.11895]
[1730838035357,1.26837538,2427.9,2427.8,4.7513238]
[1730838035588,1.26837538,2427.9,2427.8,4.66895]
[1730838036070,4.19469436,2429.1,2428.9,4.11707]
[1730838036266,4.6141638,2429.1,2428.5,0.7695]
[1730838036469,5.0,2429.0,2428.5,4.11765]
[1730838036743,5.0,2429.0,2428.7,4.11739]
[1730838036900,5.0,2429.0,2428.7,8.23471]
[1730838037258,5.0,2429.0,2428.8,4.11723]
[1730838037574,5.0,2429.0,2428.7,4.11732]
[1730838037756,0.41946944,2429.1,2428.9,4.11709]
[1730838037962,5.0,2429.3,2428.9,4.11709]
[1730838038160,5.0,2429.3,2429.1,4.11673]
[1730838038396,5.0,2429.3,2428.9,4.11709]
[1730838038704,5.0,2429.3,2429.0,4.11687]
[1730838038866,0.8177,2429.5,2429.0,4.11691]
[1730838039073,5.0,2429.9,2429.1,0.7625]
[1730838039265,5.0,2429.9,2429.1,4.87915]
[1730838039501,5.0,2429.5,2428.9,4.11694]
[1730838039908,5.0,2429.2,2428.5,4.11771]
[1730838040200,5.0,2429.2,2428.5,4.11766]
[1730838040400,5.0,2429.2,2428.6,4.11758]
[1730838040609,0.5,2429.1,2428.6,4.11758]
[1730838040779,0.5,2429.1,2428.4,0.7625]
[1730838040968,0.7886,2429.0,2428.3,4.118]
[1730838041176,0.7886,2429.0,2428.5,4.11775]
[1730838042067,0.5,2429.1,2428.8,4.11709]
[1730838042319,0.55,2429.0,2428.9,4.11709]
[1730838042469,0.7965,2429.4,2428.9,4.11709]
[1730838043186,5.0,2429.2,2428.6,4.11755]
[1730838044231,5.0,2429.2,2428.6,4.11749]
[1730838044571,5.0,2429.2,2428.7,4.11741]
[1730838044773,0.5,2429.1,2428.7,4.11741]
[1730838045335,0.5,2429.1,2428.8,4.11725]
[1730838045619,0.8135,2429.0,2428.6,4.11749]
[1730838045788,0.8135,2429.0,2428.4,4.11783]
[1730838046119,0.8135,2429.0,2428.6,4.11758]
[1730838048684,0.63135,2429.0,2428.5,0.08235178]
[1730838048925,5.0,2429.2,2428.3,0.7823]
[1730838049129,5.0,2428.9,2428.3,0.7823]
[1730838049330,5.0,2428.6,2428.0,4.90074]
[1730838049492,5.0,2428.6,2428.0,4.11844]
[1730838049690,0.5,2428.5,2428.0,4.11844]
[1730838049891,0.5,2428.5,2427.8,4.11888]
[1730838050091,5.0,2428.3,2427.7,4.90141]
[1730838050404,0.792,2428.2,2427.8,4.11883]
[1730838050589,0.792,2428.2,2427.8,8.2377]
[1730838050940,1.3712,2428.2,2428.1,4.11844]
[1730838051141,0.5792,2428.2,2427.8,4.1188]
[1730838051994,0.5792,2428.2,2427.9,4.11867]
[1730838052738,0.5792,2428.2,2427.8,4.1188]
[1730838052903,0.5792,2428.2,2427.6,4.11918]
[1730838053238,5.0,2428.0,2427.5,4.11945]
[1730838053439,5.0,2428.0,2427.4,0.7823]
[1730838053593,5.0,2428.0,2427.9,4.11878]
[1730838053787,5.0,2428.0,2427.8,4.11893]
[1730838055034,5.5,2428.5,2428.0,4.88513]
[1730838055238,5.0,2428.5,2428.0,0.7666]
[1730838055590,5.0,2428.5,2427.9,4.11873]
[1730838055909,5.0,2428.2,2427.6,4.11921]
[1730838056106,5.0,2428.2,2427.4,0.7715]
[1730838056107,5.0,2428.2,2427.4,9.01057]
[1730838056311,3.5,2428.1,2427.4,9.01055]
[1730838056704,3.5,2428.1,2427.6,4.11926]
[1730838058094,5.0,2427.8,2427.4,4.891]
[1730838058533,5.0,2427.8,2427.5,4.11942]
[1730838058733,0.5,2428.1,2427.4,4.89111]
[1730838058943,5.0,2428.3,2427.8,4.11879]
[1730838059091,5.0,2428.3,2427.9,4.11877]
[1730838059291,5.0,2428.3,2427.8,4.11879]
[1730838059602,5.0,2428.3,2427.9,4.11867]
[1730838060453,5.0,2428.3,2427.8,8.23764]
[1730838060625,0.57556,2428.2,2427.8,8.23764]
[1730838061001,0.57556,2428.2,2427.9,4.11874]
[1730838061609,5.0,2428.3,2428.1,4.11844]
[1730838061939,5.0,2428.3,2427.9,4.1187]
[1730838062300,5.0,2427.9,2427.5,4.11937]
[1730838062637,5.0,2427.9,2427.4,4.89112]
[1730838062840,4.87357,2428.4,2427.4,0.7715]
[1730838062841,3.7556,2428.4,2427.4,0.7715]
[1730838063056,3.0,2428.1,2427.8,4.11885]
[1730838063263,5.0,2428.2,2428.0,4.11852]
[1730838063427,0.75195894,2428.3,2428.0,8.23704]
[1730838063604,0.75195894,2428.3,2427.9,4.11878]
[1730838065344,0.75195894,2428.3,2428.0,4.11856]
[1730838065959,0.65075589,2428.2,2427.8,4.11881]
[1730838066135,0.65075589,2428.2,2427.6,4.11919]
[1730838066450,0.65075589,2428.2,2427.8,4.11882]
[1730838067332,0.65075589,2428.2,2427.7,4.11912]
[1730838067567,5.0,2428.0,2427.5,4.11932]
[1730838067753,5.0,2428.0,2427.8,4.11895]
[1730838069079,5.0,2428.0,2427.8,4.11895]
[1730838069428,5.7556,2428.4,2427.5,0.55]
[1730838069657,5.7556,2428.4,2427.6,0.08237323]
[1730838069855,5.7556,2428.4,2427.5,0.55]
[1730838069856,6.45721162,2428.4,2427.5,0.55]
[1730838070168,6.45721162,2428.4,2427.9,4.11869]
[1730838070471,6.45721162,2428.4,2427.9,8.23738]
[1730838070766,6.45721162,2428.4,2428.1,4.11842]
[1730838071071,1.40440104,2428.7,2428.3,4.11795]
[1730838071235,6.40440104,2428.7,2428.3,4.11795]
[1730838071435,0.43035194,2428.6,2428.3,4.11795]
[1730838072549,0.43035194,2428.6,2428.5,4.11776]
[1730838072747,5.0,2428.8,2428.1,0.7986]
[1730838072934,0.5,2428.7,2428.1,0.7986]
[1730838073141,0.5,2428.7,2427.8,4.91742]
[1730838073142,5.0,2428.4,2427.8,4.91742]
[1730838073342,5.0,2428.4,2427.8,4.11882]
[1730838073678,5.0,2428.1,2427.6,4.11918]
[1730838073887,5.0,2428.1,2427.4,4.11953]
[1730838073888,0.7589,2428.0,2427.4,4.11953]
[1730838074038,5.0,2427.7,2427.3,0.7986]
[1730838074238,0.7589,2427.6,2427.0,0.7986]
[1730838074556,0.7589,2427.6,2426.9,8.24076]
[1730838074557,0.7589,2427.6,2426.9,4.12037]
[1730838075071,0.7589,2427.6,2427.2,4.11995]
[1730838075275,0.7589,2427.6,2427.3,4.11969]
[1730838075460,1.2605162,2427.7,2427.4,4.11962]
[1730838075785,2.94118834,2427.8,2427.4,4.11962]
[1730838075973,1.2605162,2427.8,2427.4,4.11962]
[1730838077043,1.2605162,2427.8,2427.5,4.11945]
[1730838077262,1.2605162,2427.8,2427.5,4.1193]
[1730838078697,1.2605162,2427.8,2427.6,4.11929]
[1730838078865,1.2605162,2427.8,2427.5,4.11945]
[1730838079188,1.2605162,2427.8,2427.4,8.23915]
[1730838079776,1.2605162,2427.8,2427.5,4.11944]
[1730838079977,1.2605162,2427.8,2427.6,4.11929]
[1730838080357,1.2605162,2427.8,2427.7,4.11912]
[1730838080557,1.2605162,2427.8,2427.6,4.11929]
[1730838080885,1.2605162,2427.8,2427.0,4.8854]
[1730838081195,5.0,2427.6,2427.1,4.12005]
[1730838081494,5.0,2427.6,2427.0,4.1202]
[1730838081654,5.0,2427.6,2427.1,4.12004]
[1730838082071,1.54521883,2427.7,2426.8,0.7652]
[1730838082266,0.7511,2427.7,2426.9,0.08240054]
[1730838082497,0.7511,2427.7,2427.5,4.11937]
[1730838084505,5.0,2427.5,2426.3,4.1215]
[1730838084662,5.0,2427.2,2426.6,4.1209]
[1730838084859,5.0,2427.2,2426.4,4.12121]
[1730838084860,0.7509,2427.1,2426.4,4.12121]
[1730838085071,0.7509,2427.1,2426.4,4.1212]
[1730838085485,0.7509,2427.1,2426.6,4.12098]
[1730838086824,0.7509,2427.1,2426.7,4.12077]
[1730838087029,5.0,2427.4,2426.9,4.12036]
[1730838087238,5.0,2427.3,2426.8,4.12049]
[1730838087829,5.0,2427.3,2426.9,4.12037]
[1730838088131,6.26968797,2427.3,2426.9,4.12037]
[1730838088434,6.26968797,2427.3,2427.0,4.12028]
[1730838088592,6.26968797,2427.3,2426.7,4.12073]
[1730838088795,1.26968797,2427.2,2426.7,4.12073]
[1730838089344,6.18187618,2427.3,2426.7,4.12073]
[1730838089345,7.45156415,2427.3,2426.7,4.12073]
[1730838089518,1.26968797,2427.2,2426.7,4.12073]
[1730838089718,7.45156415,2427.3,2426.9,4.12045]
[1730838089918,5.0,2427.2,2426.9,4.12042]
[1730838090114,6.26968797,2427.2,2426.7,8.24148]
[1730838090322,5.0,2427.2,2426.7,8.24147]
[1730838090502,5.0,2427.2,2426.8,4.12061]
[1730838091197,5.0,2427.2,2426.7,4.12073]
[1730838091521,7.18413611,2427.2,2426.7,4.12073]
[1730838091928,7.18413611,2427.2,2426.7,8.24146]
[1730838092595,7.18413611,2427.2,2426.8,4.12054]
[1730838093010,7.18413611,2427.2,2426.8,8.24106]
[1730838093212,6.26968797,2427.2,2426.8,8.24106]
[1730838093612,6.26968797,2427.2,2426.8,4.12052]
[1730838095907,5.0,2426.9,2426.4,4.12116]
[1730838096114,5.0,2426.9,2425.9,0.7559]
[1730838096440,0.8191,2426.5,2426.1,4.12175]
[1730838096737,0.8191,2426.5,2425.8,4.1821787]
[1730838096738,5.0,2426.3,2425.8,4.1821787]
[1730838096937,5.0,2426.3,2426.0,4.12195]
[1730838097309,5.0,2426.0,2425.8,0.0599987]
[1730838097516,0.822,2425.9,2425.8,0.0599987]
[1730838097893,0.822,2425.9,2425.8,4.1823487]
[1730838098113,5.822,2426.2,2425.8,4.1823487]
[1730838098317,0.822,2426.2,2425.8,4.1823487]
[1730838098610,5.0,2426.0,2425.8,0.0599987]
[1730838098811,1.27134841,2426.2,2425.8,0.0599987]
[1730838099012,5.822,2426.2,2425.8,4.1821987]
[1730838099226,0.822,2426.2,2425.9,4.12217]
[1730838099744,6.26968797,2426.4,2425.8,0.0599987]
[1730838100041,5.0,2426.1,2425.8,4.1823087]
[1730838100830,5.0,2426.1,2425.8,4.1822387]
[1730838101743,5.0,2426.3,2425.8,0.0599987]
[1730838101911,1.26968797,2426.4,2426.3,4.1215]
[1730838102644,1.26968797,2426.4,2426.2,4.12165]
[1730838103014,1.26968797,2426.4,2426.1,4.12183]
[1730838103596,1.26968797,2426.4,2426.1,4.12175]
[1730838103797,5.0,2426.2,2426.0,4.12198]
[1730838105360,5.0,2426.2,2425.9,4.12208]
[1730838105638,5.5,2426.2,2425.9,4.12208]
[1730838106001,5.5,2426.2,2425.8,0.0599987]
[1730838106200,5.5,2426.2,2425.8,4.1822487]
[1730838107605,0.7705,2426.1,2425.8,4.1823087]
[1730838108241,0.7705,2426.1,2426.0,4.12201]
[1730838109250,0.7705,2426.1,2425.9,4.12203]
[1730838109400,5.0,2426.2,2425.9,4.12203]
[1730838110348,5.0,2426.2,2426.0,4.12188]
[1730838110641,5.57705,2426.2,2425.8,0.0599987]
[1730838110852,5.57705,2426.2,2425.9,4.1221]
[1730838111300,5.57705,2426.2,2425.8,4.1823187]
[1730838111753,5.57705,2426.2,2425.8,0.0599987]
[1730838111917,5.0,2426.2,2425.9,4.12208]
[1730838114144,5.0,2426.2,2425.8,4.1822987]
[1730838114145,5.0,2426.2,2425.8,0.0599987]
[1730838114354,5.0,2426.2,2426.0,4.12193]
[1730838116141,5.0,2426.2,2425.8,0.0599987]
[1730838116142,0.7705,2426.3,2425.9,4.12205]
[1730838116353,0.7705,2426.3,2425.8,4.1822587]
[1730838116508,1.34755,2426.3,2425.9,4.12216]
[1730838118542,1.34755,2426.3,2425.8,0.0599987]
[1730838118743,5.0,2426.4,2425.8,0.0599987]
[1730838118945,5.0,2426.4,2426.1,4.12175]
[1730838119124,5.0,2426.4,2425.9,4.12217]
[1730838120869,5.0,2426.4,2425.8,4.1822087]
[1730838121167,5.0,2426.1,2425.8,0.0599987]
[1730838122732,5.0,2426.1,2425.8,4.1821887]
[1730838122976,5.0,2426.2,2425.8,0.8608987]
[1730838123161,1.64869077,2426.5,2425.9,0.55]
[1730838123162,5.0,2426.5,2425.9,0.55]
[1730838123344,1.69096103,2426.7,2426.1,4.12172]
[1730838123546,5.0,2426.5,2425.9,4.12204]
[1730838123732,0.87531818,2426.7,2425.8,4.1823387]
[1730838123733,5.0,2426.2,2425.8,4.1823387]
[1730838124079,5.0,2425.9,2425.8,0.0599987]
[1730838124464,5.7923,2425.9,2425.8,0.0599987]
[1730838124779,4.26822077,2426.3,2425.8,0.0599987]
[1730838124780,5.0,2426.1,2425.8,0.0599987]
[1730838124984,0.57923,2426.0,2425.8,0.0599987]
[1730838125138,5.0,2426.1,2425.8,0.0599987]
[1730838125548,5.0,2426.1,2425.9,4.12202]
[1730838125749,1.26822077,2426.3,2426.2,4.12167]
[1730838126157,7.9591818,2426.4,2426.2,4.12167]
[1730838126346,7.9591818,2426.4,2426.2,4.12159]
[1730838126557,7.9591818,2426.4,2426.1,4.12183]
[1730838126768,7.9591818,2426.4,2426.2,4.12166]
[1730838126993,6.69096103,2426.4,2426.2,4.12166]
[1730838129479,0.8113,2426.3,2425.9,4.12217]
[1730838130178,5.0,2426.1,2425.8,0.0599987]
[1730838130510,6.69096103,2426.4,2426.2,4.12158]
[1730838131598,6.69096103,2426.4,2425.9,4.12204]
[1730838131810,6.69096103,2426.4,2425.8,0.0599987]
[1730838132103,1.69096103,2426.4,2426.3,4.1215]
[1730838132867,1.69096103,2426.4,2426.2,4.12156]
[1730838132868,6.69096103,2426.4,2426.2,4.12156]
[1730838133068,6.69096103,2426.4,2426.0,4.12189]
[1730838133069,7.44118713,2426.4,2426.0,4.12189]
[1730838133687,7.44118713,2426.4,2426.0,8.24382]
[1730838134109,7.44118713,2426.4,2425.8,4.1822287]
[1730838134413,7.44118713,2426.4,2425.9,4.12218]
[1730838135170,7.44118713,2426.4,2426.0,4.122]
[1730838135370,0.74411871,2426.3,2426.0,4.1210965]
[1730838135784,5.0,2426.1,2425.9,4.12218]
[1730838136073,5.0,2426.1,2425.8,4.1822587]
[1730838136373,6.26822077,2426.1,2425.8,4.1822587]
[1730838136683,6.26822077,2426.1,2425.8,8.3045087]
[1730838137273,6.26822077,2426.1,2425.9,4.12216]
[1730838137569,1.69096103,2426.2,2425.8,4.1822487]
[1730838137570,1.26822077,2426.2,2426.0,4.12201]
[1730838137774,1.26822077,2426.2,2426.1,4.12184]
[1730838140380,1.69096103,2426.2,2426.1,4.12184]
[1730838141276,2.12288577,2426.3,2426.1,4.12184]
[1730838141474,2.12288577,2426.3,2426.2,4.12167]
[1730838141781,7.12288577,2426.3,2426.2,4.12167]
[1730838142366,5.0,2426.3,2426.2,4.12167]
[1730838142672,5.0,2426.0,2425.8,0.0599987]
[1730838142876,7.94054277,2426.0,2425.8,0.0599987]
[1730838143173,3.0,2425.9,2425.8,0.0599987]
[1730838143337,31.41517482,2425.9,2425.8,0.0599987]
[1730838143673,27.9957423,2425.9,2425.8,0.0599987]
[1730838143972,24.28227427,2425.9,2425.8,0.0599987]
[1730838144169,29.29227427,2425.9,2425.8,0.0599987]
[1730838144466,27.7957383,2425.9,2425.8,0.0599987]
[1730838144621,19.1376883,2425.9,2425.8,0.0599987]
[1730838144821,20.9157163,2425.9,2425.8,0.0599987]
[1730838145022,22.9754863,2425.9,2425.8,0.0599987]
[1730838145538,23.5254863,2425.9,2425.8,0.0599987]
[1730838149658,0.7677,2424.9,2424.5,0.0599987]
[1730838149980,7.03716192,2424.9,2424.5,0.0599987]
[1730838151050,6.26946192,2424.9,2424.5,0.0599987]
[1730838152401,1.26946192,2424.9,2424.8,4.12405]
[1730838152957,1.26946192,2424.9,2424.7,4.12419]
[1730838153154,1.26946192,2424.9,2424.5,4.9507087]
[1730838153368,1.26946192,2424.9,2424.5,5.44577957]
[1730838153571,1.26946192,2424.9,2424.5,4.9507087]
[1730838153865,1.26946192,2424.9,2424.5,0.8262987]
[1730838154181,5.7751,2424.8,2424.5,0.0599987]
[1730838155205,3.7751,2424.8,2424.5,0.0599987]
[1730838155416,5.12247699,2424.8,2424.5,0.0599987]
[1730838156503,5.0,2424.7,2424.5,0.0599987]
[1730838157812,5.0,2424.7,2423.7,4.12585]
[1730838157813,5.0,2424.4,2423.3,0.8899987]
[1730838157972,3.7697,2424.6,2423.3,0.8899987]
[1730838157973,6.18941167,2424.0,2423.3,5.0164687]
[1730838158174,0.7697,2423.6,2423.3,0.0599987]
[1730838158868,0.7697,2423.9,2423.4,4.12631]
[1730838159072,2.09255736,2423.9,2423.4,4.12629]
[1730838159613,0.7697,2423.9,2423.6,4.12607]
[1730838160290,11.18941167,2424.0,2423.6,4.12607]
[1730838160291,3.0,2424.0,2423.6,4.12599]
[1730838160497,5.0,2424.1,2423.6,4.12599]
[1730838160670,3.7697,2424.2,2423.6,4.12599]
[1730838160896,5.26561117,2424.2,2423.6,4.12602]
[1730838161141,5.26561117,2424.2,2423.6,4.12595]
[1730838161306,5.26561117,2424.2,2423.6,8.25194]
[1730838162445,5.26561117,2424.2,2424.0,4.12531]
[1730838162446,4.49591117,2424.2,2424.0,4.12531]
[1730838162739,3.18941167,2424.3,2424.0,4.12531]
[1730838163440,3.18941167,2424.3,2423.9,4.12553]
[1730838163829,3.18941167,2424.3,2423.9,4.93623]
[1730838164006,3.18941167,2424.3,2423.9,0.8107]
[1730838164747,3.18941167,2424.3,2423.6,4.12597]
[1730838164748,3.18941167,2424.3,2423.7,0.8107]
[1730838164915,0.81894117,2424.2,2423.6,4.12592]
[1730838165239,0.81894117,2424.2,2423.7,4.12576]
[1730838165544,0.81894117,2424.2,2423.8,4.12573]
[1730838165702,0.81894117,2424.2,2423.8,4.12562]
[1730838166299,0.81894117,2424.2,2423.9,4.1255]
[1730838166844,3.18941167,2424.3,2423.9,4.1255]
[1730838166998,5.0,2424.4,2423.9,4.1255]
[1730838167974,5.0,2424.4,2423.8,4.12562]
[1730838167975,3.0,2424.5,2424.0,0.8107]
[1730838168264,3.0,2424.5,2423.8,4.93633]
[1730838168559,5.0,2424.3,2423.8,9.06198]
[1730838168763,5.0,2424.3,2423.8,4.93633]
[1730838169449,5.0,2424.3,2423.8,9.062]
[1730838169926,5.0,2424.3,2423.9,4.12557]
[1730838170439,5.0,2424.3,2423.8,4.93633]
[1730838170634,5.0,2424.3,2424.0,4.12539]
[1730838170839,5.0,2424.3,2423.9,4.12556]
[1730838171246,5.91953112,2424.3,2423.8,0.8107]
[1730838171422,5.91953112,2424.3,2423.8,4.93643]
[1730838171869,0.7934,2424.2,2423.8,4.12573]
[1730838172035,0.7934,2424.2,2423.6,0.8327]
[1730838172036,8.18941167,2424.0,2423.4,4.12628]
[1730838172447,5.0,2424.0,2423.6,4.12599]
[1730838172675,5.87934,2424.0,2423.6,4.12599]
[1730838173242,5.87934,2424.0,2423.3,0.8926987]
[1730838173447,3.7934,2424.2,2423.8,4.12562]
[1730838173746,3.7934,2424.2,2423.5,4.12625]
[1730838173747,0.7934,2424.2,2423.5,4.12625]
[1730838173950,0.7934,2424.2,2423.6,4.12603]
[1730838174150,5.0,2424.0,2423.3,0.8926987]
[1730838174342,0.7934,2423.8,2423.3,4.1865087]
[1730838174542,0.7934,2423.8,2423.3,8.3129687]
[1730838174774,0.7934,2423.8,2423.3,4.1864587]
[1730838174976,0.7934,2423.8,2423.3,8.3129687]
[1730838175140,5.0,2423.7,2423.3,0.0599987]
[1730838175337,0.57934,2423.6,2423.3,0.0599987]
[1730838175536,5.0,2423.4,2423.3,0.0599987]
[1730838175772,0.7934,2423.5,2423.3,0.0599987]
[1730838175973,5.7934,2423.5,2423.3,0.0599987]
[1730838176549,0.57934,2423.6,2423.3,0.0599987]
[1730838176761,0.8301,2423.8,2423.3,0.0599987]
[1730838176943,0.8301,2424.1,2423.7,4.12591]
[1730838177365,5.0,2424.0,2423.8,4.12564]
[1730838177547,0.42941148,2424.3,2424.1,4.12514]
[1730838177749,0.8301,2424.8,2424.0,0.7704]
[1730838177750,0.8301,2424.8,2424.5,4.12452]
[1730838178000,0.42983336,2425.0,2424.7,4.12418]
[1730838178165,5.0,2424.9,2424.3,9.01999]
[1730838178365,5.0,2424.9,2424.3,4.89517]
[1730838178569,4.01951167,2425.3,2424.5,4.12448]
[1730838178747,5.0,2425.1,2424.4,4.12472]
[1730838178949,7.31313167,2425.0,2424.3,0.7704]
[1730838179198,5.0,2424.7,2424.0,0.7988]
[1730838179363,0.58301,2424.6,2424.0,4.92418]
[1730838179755,0.58301,2424.6,2423.8,4.12561]
[1730838179756,4.70742,2424.6,2423.8,4.12561]
[1730838179892,5.0,2424.4,2423.8,4.12561]
[1730838180090,0.8192,2424.3,2423.8,4.12561]
[1730838180324,5.8192,2424.3,2423.8,4.12561]
[1730838180532,6.40112,2424.3,2423.8,4.12561]
[1730838180900,0.8192,2424.3,2424.0,4.12531]
[1730838181105,6.33691,2424.6,2424.2,4.12505]
[1730838181294,6.33691,2424.6,2423.7,0.88130722]
[1730838181295,6.33691,2424.6,2424.0,8.25059]
[1730838181496,6.33691,2424.6,2424.0,4.12528]
[1730838181924,0.58301,2424.6,2424.3,4.12489]
[1730838182135,3.8046,2424.8,2424.3,4.12489]
[1730838182285,0.8046,2425.0,2424.7,4.12422]
[1730838182494,1.18069088,2425.3,2424.9,4.12376]
[1730838182723,0.41427687,2425.2,2424.9,8.24752]
[1730838182924,0.7519,2425.3,2425.0,4.12369]
[1730838183110,5.0,2425.2,2424.7,0.7814]
[1730838183296,5.0,2425.2,2424.5,4.12447]
[1730838183510,5.0,2425.2,2424.7,4.12421]
[1730838184125,5.0,2425.2,2424.5,4.94416]
[1730838184328,0.57519,2425.1,2424.5,0.8197]
[1730838184503,4.69882,2425.1,2424.3,9.06928]
[1730838184696,4.69882,2425.1,2424.4,4.12469]
[1730838184901,0.969882,2425.0,2424.4,4.12469]
[1730838185309,0.969882,2425.0,2424.7,4.12411]
[1730838185512,0.57519,2425.1,2424.9,4.12372]
[1730838185744,3.7519,2425.3,2424.9,4.12372]
[1730838185949,3.7519,2425.3,2424.9,8.2475]
[1730838186151,3.7519,2425.3,2424.7,4.12408]
[1730838186451,0.87519,2425.2,2424.7,4.12408]
[1730838186746,0.87519,2425.2,2424.8,4.12402]
[1730838186946,0.87519,2425.2,2424.7,4.12408]
[1730838187750,0.87519,2425.2,2424.8,4.124]
[1730838188467,3.7519,2425.3,2424.5,4.12446]
[1730838188613,5.0,2424.8,2424.1,4.12508]
[1730838188953,5.0,2424.5,2423.9,4.12546]
[1730838189433,0.7808,2424.4,2423.7,4.91586]
[1730838189610,3.7808,2424.4,2423.9,4.12544]
[1730838190255,3.7808,2424.4,2423.7,4.12578]
[1730838190605,3.7808,2424.4,2423.9,4.12554]
[1730838190810,3.7808,2424.4,2423.7,4.12592]
[1730838191010,4.87706949,2424.4,2423.9,4.12544]
[1730838191353,12.89474842,2424.0,2423.3,0.0599987]
[1730838191559,4.92639,2423.9,2423.3,0.0599987]
[1730838191707,5.0,2423.7,2423.3,0.0599987]
[1730838192825,5.0,2423.7,2423.3,4.1864787]
[1730838193027,6.00701619,2423.7,2423.3,0.0599987]
[1730838193441,0.7806,2423.6,2423.3,0.0599987]
[1730838193763,4.90671,2423.6,2423.3,0.0599987]
[1730838193958,12.12643,2423.4,2423.3,0.0599987]
[1730838195627,14.608364,2423.4,2423.3,0.0599987]
[1730838196018,5.481934,2423.4,2423.3,0.0599987]
[1730838196214,3.7788,2423.4,2423.3,0.0599987]
[1730838196543,5.0,2423.8,2423.4,4.12633]
[1730838196742,1.26946192,2423.9,2423.3,4.1865787]
[1730838197062,5.0,2423.8,2423.3,0.0599987]
[1730838197549,5.0,2423.8,2423.3,4.1865987]
[1730838197755,5.70407619,2423.8,2423.3,4.1865987]
[1730838198113,0.70407619,2423.8,2423.3,4.1865987]